[Event "December 19 Late 2023"]
[Site "https://www.chess.com"]
[Date "2023.12.19"]
[Round "4"]
[White "Grigoriants, Sergey"]
[Black "slidingknight2775"]
[Result "1/2-1/2"]
[Board "22"]
[TimeControl "180+1"]
[WhiteFideId "4130804"]
[WhiteElo "2532"]
[BlackElo "2640"]
[WhiteTeam "HUN"]
[WhiteClock "0:00:07"]
[BlackClock "0:00:10"]

1. d4 {[%clk 0:02:52]}  d5 {[%clk 0:02:59]} 2. c4 {[%clk 0:02:52]}  e6 {[%clk 0:02:59]} 3. Nc3 {[%clk 0:02:51]}  a6 {[%clk 0:03:00]} 4. cxd5 {[%clk 0:02:43]}  exd5 {[%clk 0:03:01]} 5. Nf3 {[%clk 0:02:41]}  Nf6 {[%clk 0:03:01]} 6. Bg5 {[%clk 0:02:41]}  Be6 {[%clk 0:03:02]} 7. e3 {[%clk 0:02:41]}  Nbd7 {[%clk 0:03:03]} 8. Bd3 {[%clk 0:02:38]}  Bd6 {[%clk 0:03:02]} 9. O-O {[%clk 0:02:37]}  c6 {[%clk 0:03:02]} 10. Kh1 {[%clk 0:02:36]}  h6 {[%clk 0:03:01]} 11. Bh4 {[%clk 0:02:36]}  Qc7 {[%clk 0:03:00]} 12. Rc1 {[%clk 0:02:34]}  O-O {[%clk 0:02:59]} 13. Nd2 {[%clk 0:02:34]}  Rfe8 {[%clk 0:02:48]} 14. f4 {[%clk 0:02:33]}  Ng4 {[%clk 0:02:14]} 15. f5 {[%clk 0:02:12]}  Nxe3 {[%clk 0:02:13]} 16. fxe6 {[%clk 0:02:11]}  Rxe6 {[%clk 0:01:50]} 17. Qh5 {[%clk 0:02:08]}  Nxf1 {[%clk 0:01:49]} 18. Rxf1 {[%clk 0:02:09]}  Nf8 {[%clk 0:01:45]} 19. Nf3 {[%clk 0:01:48]}  Rae8 {[%clk 0:01:36]} 20. Qg4 {[%clk 0:01:47]}  Kh8 {[%clk 0:01:14]} 21. a3 {[%clk 0:01:23]}  Ng6 {[%clk 0:00:53]} 22. Bg3 {[%clk 0:01:09]}  Bxg3 {[%clk 0:00:51]} 23. hxg3 {[%clk 0:01:09]}  Rf6 {[%clk 0:00:51]} 24. Ne2 {[%clk 0:00:56]}  Qc8 {[%clk 0:00:41]} 25. Qxc8 {[%clk 0:00:49]}  Rxc8 {[%clk 0:00:42]} 26. Bxg6 {[%clk 0:00:49]}  fxg6 {[%clk 0:00:41]} 27. Rc1 {[%clk 0:00:47]}  Re8 {[%clk 0:00:38]} 28. Ne5 {[%clk 0:00:45]}  Rf2 {[%clk 0:00:37]} 29. Rc2 {[%clk 0:00:36]}  Kh7 {[%clk 0:00:28]} 30. Kg1 {[%clk 0:00:36]}  Rff8 {[%clk 0:00:25]} 31. Nf4 {[%clk 0:00:34]}  g5 {[%clk 0:00:24]} 32. Nfd3 {[%clk 0:00:34]}  Re7 {[%clk 0:00:23]} 33. g4 {[%clk 0:00:33]}  Rfe8 {[%clk 0:00:22]} 34. b4 {[%clk 0:00:33]}  Ra8 {[%clk 0:00:21]} 35. Rc5 {[%clk 0:00:31]}  Kg8 {[%clk 0:00:19]} 36. a4 {[%clk 0:00:32]}  Kh7 {[%clk 0:00:19]} 37. a5 {[%clk 0:00:32]}  Rf8 {[%clk 0:00:19]} 38. Rc3 {[%clk 0:00:31]}  Rf6 {[%clk 0:00:19]} 39. Rc2 {[%clk 0:00:24]}  Rf8 {[%clk 0:00:17]} 40. Rd2 {[%clk 0:00:18]}  Rf6 {[%clk 0:00:17]} 41. Re2 {[%clk 0:00:18]}  Rf8 {[%clk 0:00:17]} 42. g3 {[%clk 0:00:18]}  Rfe8 {[%clk 0:00:16]} 43. Kg2 {[%clk 0:00:18]}  Kg8 {[%clk 0:00:16]} 44. Nc5 {[%clk 0:00:18]}  Kh7 {[%clk 0:00:16]} 45. Re3 {[%clk 0:00:17]}  Rf8 {[%clk 0:00:15]} 46. Rc3 {[%clk 0:00:16]}  Rfe8 {[%clk 0:00:15]} 47. Rc2 {[%clk 0:00:16]}  Rf8 {[%clk 0:00:16]} 48. Ncd7 {[%clk 0:00:14]}  Rd8 {[%clk 0:00:15]} 49. Nc5 {[%clk 0:00:12]}  Rde8 {[%clk 0:00:16]} 50. Rc1 {[%clk 0:00:12]}  Rf8 {[%clk 0:00:16]} 51. Rd1 {[%clk 0:00:11]}  Rfe8 {[%clk 0:00:16]} 52. Kf3 {[%clk 0:00:11]}  Rf8+ {[%clk 0:00:16]} 53. Ke3 {[%clk 0:00:11]}  Rfe8 {[%clk 0:00:17]} 54. Rf1 {[%clk 0:00:10]}  Kg8 {[%clk 0:00:16]} 55. Kd3 {[%clk 0:00:10]}  Kh7 {[%clk 0:00:16]} 56. Rf2 {[%clk 0:00:10]}  Kg8 {[%clk 0:00:16]} 57. Kc3 {[%clk 0:00:10]}  Kh7 {[%clk 0:00:15]} 58. Kb3 {[%clk 0:00:09]}  Kg8 {[%clk 0:00:16]} 59. Ka4 {[%clk 0:00:09]}  Rc7 {[%clk 0:00:15]} 60. Rf3 {[%clk 0:00:08]}  Rce7 {[%clk 0:00:15]} 61. Kb3 {[%clk 0:00:08]}  Kh7 {[%clk 0:00:15]} 62. Kc3 {[%clk 0:00:07]}  Kg8 {[%clk 0:00:15]} 63. Ncd7 {[%clk 0:00:07]}  Kh7 {[%clk 0:00:12]} 64. Nf8+ {[%clk 0:00:06]}  Kg8 {[%clk 0:00:12]} 65. Nfd7 {[%clk 0:00:07]}  Kh7 {[%clk 0:00:12]} 66. Nc5 {[%clk 0:00:07]}  Kg8 {[%clk 0:00:11]} 67. Rf2 {[%clk 0:00:08]}  Kh7 {[%clk 0:00:11]} 68. Kb3 {[%clk 0:00:07]}  Kg8 {[%clk 0:00:11]} 69. b5 {[%clk 0:00:07]}  axb5 {[%clk 0:00:10]} 70. Kb4 {[%clk 0:00:07]}  Ra8 {[%clk 0:00:10]} 71. Nb3 {[%clk 0:00:07]}  Kh7 {[%clk 0:00:09]} 72. Kc5 {[%clk 0:00:07]}  Kg8 {[%clk 0:00:08]} 73. Kd6 {[%clk 0:00:06]}  Rae8 {[%clk 0:00:09]} 74. Nc5 {[%clk 0:00:05]}  Kh7 {[%clk 0:00:08]} 75. Ned7 {[%clk 0:00:04]}  Kg8 {[%clk 0:00:07]} 76. Nxb7 {[%clk 0:00:03]}  Re6+ {[%clk 0:00:08]} 77. Kc7 {[%clk 0:00:03]}  Re3 {[%clk 0:00:06]} 78. Nbc5 {[%clk 0:00:03]}  Rxg3 {[%clk 0:00:06]} 79. a6 {[%clk 0:00:04]}  Ra8 {[%clk 0:00:06]} 80. Ra2 {[%clk 0:00:04]}  Rxg4 {[%clk 0:00:06]} 81. Kb7 {[%clk 0:00:04]}  Rxa6 {[%clk 0:00:06]} 82. Rxa6 {[%clk 0:00:04]}  Rxd4 {[%clk 0:00:07]} 83. Rxc6 {[%clk 0:00:05]}  b4 {[%clk 0:00:07]} 84. Rb6 {[%clk 0:00:05]}  g4 {[%clk 0:00:08]} 85. Ne5 {[%clk 0:00:05]}  g3 {[%clk 0:00:08]} 86. Rg6 {[%clk 0:00:04]}  b3 {[%clk 0:00:05]} 87. Rxg3 {[%clk 0:00:02]}  Rb4+ {[%clk 0:00:05]} 88. Kc6 {[%clk 0:00:02]}  b2 {[%clk 0:00:05]} 89. Rg1 {[%clk 0:00:02]}  b1=Q {[%clk 0:00:06]} 90. Rxb1 {[%clk 0:00:03]}  Rxb1 {[%clk 0:00:07]} 91. Kxd5 {[%clk 0:00:03]}  Rd1+ {[%clk 0:00:07]} 92. Ke4 {[%clk 0:00:03]}  Kh7 {[%clk 0:00:07]} 93. Ne6 {[%clk 0:00:03]}  Re1+ {[%clk 0:00:07]} 94. Kf5 {[%clk 0:00:04]}  g6+ {[%clk 0:00:07]} 95. Kf4 {[%clk 0:00:03]}  g5+ {[%clk 0:00:06]} 96. Kf5 {[%clk 0:00:04]}  Rf1+ {[%clk 0:00:07]} 97. Kg4 {[%clk 0:00:04]}  Rg1+ {[%clk 0:00:06]} 98. Kf5 {[%clk 0:00:04]}  Rf1+ {[%clk 0:00:07]} 99. Kg4 {[%clk 0:00:05]}  Kg8 {[%clk 0:00:07]} 100. Kh5 {[%clk 0:00:05]}  Rh1+ {[%clk 0:00:07]} 101. Kg6 {[%clk 0:00:05]}  Re1 {[%clk 0:00:07]} 102. Kf6 {[%clk 0:00:05]}  Rxe5 {[%clk 0:00:06]} 103. Kxe5 {[%clk 0:00:05]}  Kh7 {[%clk 0:00:07]} 104. Kf5 {[%clk 0:00:05]}  g4 {[%clk 0:00:07]} 105. Kxg4 {[%clk 0:00:05]}  Kg6 {[%clk 0:00:08]} 106. Nf4+ {[%clk 0:00:06]}  Kf6 {[%clk 0:00:09]} 107. Kh5 {[%clk 0:00:06]}  Ke5 {[%clk 0:00:10]} 108. Kxh6 {[%clk 0:00:07]} 1/2-1/2

[Event "December 19 Late 2023"]
[Site "https://www.chess.com"]
[Date "2023.12.19"]
[Round "4"]
[White "Rogov, Matfey"]
[Black "Salinas Herrera, Pablo"]
[Result "1/2-1/2"]
[Board "25"]
[TimeControl "180+1"]
[WhiteFideId "44191308"]
[BlackFideId "3407128"]
[WhiteElo "2057"]
[BlackElo "2538"]
[WhiteTeam "RUS"]
[BlackTeam "CHI"]
[WhiteClock "0:00:05"]
[BlackClock "0:00:09"]

1. Nc3 {[%clk 0:03:00]}  c5 {[%clk 0:02:57]} 2. e4 {[%clk 0:03:00]}  a6 {[%clk 0:02:56]} 3. g3 {[%clk 0:02:59]}  b5 {[%clk 0:02:56]} 4. Bg2 {[%clk 0:02:58]}  Bb7 {[%clk 0:02:57]} 5. d3 {[%clk 0:02:57]}  d6 {[%clk 0:02:57]} 6. Nh3 {[%clk 0:02:56]}  g6 {[%clk 0:02:57]} 7. O-O {[%clk 0:02:55]}  Bg7 {[%clk 0:02:58]} 8. f4 {[%clk 0:02:56]}  Nd7 {[%clk 0:02:57]} 9. Be3 {[%clk 0:02:52]}  Rb8 {[%clk 0:02:41]} 10. Rb1 {[%clk 0:02:39]}  Ngf6 {[%clk 0:02:40]} 11. g4 {[%clk 0:02:28]}  O-O {[%clk 0:02:39]} 12. g5 {[%clk 0:02:26]}  Ne8 {[%clk 0:02:40]} 13. Ne2 {[%clk 0:02:24]}  Nc7 {[%clk 0:02:40]} 14. Ng3 {[%clk 0:02:20]}  b4 {[%clk 0:02:38]} 15. Nf2 {[%clk 0:02:20]}  a5 {[%clk 0:02:39]} 16. h4 {[%clk 0:02:17]}  d5 {[%clk 0:02:37]} 17. h5 {[%clk 0:02:12]}  a4 {[%clk 0:02:36]} 18. hxg6 {[%clk 0:02:07]}  hxg6 {[%clk 0:02:34]} 19. Qg4 {[%clk 0:02:04]}  b3 {[%clk 0:02:31]} 20. axb3 {[%clk 0:02:01]}  axb3 {[%clk 0:02:31]} 21. c3 {[%clk 0:01:36]}  c4 {[%clk 0:02:30]} 22. dxc4 {[%clk 0:01:32]}  dxe4 {[%clk 0:02:31]} 23. Rbd1 {[%clk 0:01:26]}  Qc8 {[%clk 0:02:24]} 24. Qxd7 {[%clk 0:01:23]}  Ne6 {[%clk 0:02:14]} 25. Qxc8 {[%clk 0:01:22]}  Rfxc8 {[%clk 0:02:15]} 26. Bxe4 {[%clk 0:01:20]}  Bxe4 {[%clk 0:02:14]} 27. Nfxe4 {[%clk 0:01:20]}  Rxc4 {[%clk 0:02:15]} 28. Nd2 {[%clk 0:01:10]}  Ra4 {[%clk 0:02:15]} 29. Ra1 {[%clk 0:01:08]}  Ra2 {[%clk 0:02:14]} 30. Nxb3 {[%clk 0:01:00]}  Rxb2 {[%clk 0:02:14]} 31. Nd4 {[%clk 0:00:59]}  Nxd4 {[%clk 0:01:36]} 32. Bxd4 {[%clk 0:00:59]}  Bxd4+ {[%clk 0:01:36]} 33. cxd4 {[%clk 0:01:00]}  R8b3 {[%clk 0:01:36]} 34. Ne4 {[%clk 0:00:51]}  Re3 {[%clk 0:01:36]} 35. Rfe1 {[%clk 0:00:50]}  Rf3 {[%clk 0:01:36]} 36. Rf1 {[%clk 0:00:47]}  Re3 {[%clk 0:01:36]} 37. Rae1 {[%clk 0:00:46]}  Rd3 {[%clk 0:01:37]} 38. Rf2 {[%clk 0:00:44]}  Rxf2 {[%clk 0:01:32]} 39. Nxf2 {[%clk 0:00:40]}  Rxd4 {[%clk 0:01:32]} 40. Re4 {[%clk 0:00:41]}  Rd7 {[%clk 0:01:15]} 41. Kg2 {[%clk 0:00:41]}  f6 {[%clk 0:01:14]} 42. Kf3 {[%clk 0:00:39]}  Kf7 {[%clk 0:01:13]} 43. Ra4 {[%clk 0:00:34]}  Rc7 {[%clk 0:01:12]} 44. Ne4 {[%clk 0:00:33]}  Rb7 {[%clk 0:01:12]} 45. Ra3 {[%clk 0:00:31]}  Kg7 {[%clk 0:01:01]} 46. Re3 {[%clk 0:00:30]}  Rc7 {[%clk 0:00:59]} 47. Rd3 {[%clk 0:00:29]}  Ra7 {[%clk 0:00:58]} 48. Nc5 {[%clk 0:00:28]}  Kf7 {[%clk 0:00:46]} 49. gxf6 {[%clk 0:00:26]}  exf6 {[%clk 0:00:47]} 50. Ne4 {[%clk 0:00:15]}  Kg7 {[%clk 0:00:42]} 51. Rd6 {[%clk 0:00:15]}  Ra3+ {[%clk 0:00:41]} 52. Kf2 {[%clk 0:00:15]}  Ra4 {[%clk 0:00:42]} 53. Ke3 {[%clk 0:00:11]}  Ra3+ {[%clk 0:00:40]} 54. Kd4 {[%clk 0:00:10]}  Ra4+ {[%clk 0:00:40]} 55. Kd5 {[%clk 0:00:10]}  f5 {[%clk 0:00:35]} 56. Rd7+ {[%clk 0:00:08]}  Kh6 {[%clk 0:00:34]} 57. Nd6 {[%clk 0:00:05]}  Rxf4 {[%clk 0:00:34]} 58. Ke5 {[%clk 0:00:06]}  Rf1 {[%clk 0:00:32]} 59. Kf6 {[%clk 0:00:05]}  Ra1 {[%clk 0:00:20]} 60. Rd8 {[%clk 0:00:04]}  Kh5 {[%clk 0:00:11]} 61. Rh8+ {[%clk 0:00:03]}  Kg4 {[%clk 0:00:11]} 62. Rg8 {[%clk 0:00:04]}  f4 {[%clk 0:00:08]} 63. Rxg6+ {[%clk 0:00:04]}  Kf3 {[%clk 0:00:09]} 64. Nf5 {[%clk 0:00:03]}  Ra6+ {[%clk 0:00:09]} 65. Kg5 {[%clk 0:00:04]}  Rxg6+ {[%clk 0:00:09]} 66. Kxg6 {[%clk 0:00:04]}  Kg4 {[%clk 0:00:09]} 67. Nd4 {[%clk 0:00:04]}  f3 {[%clk 0:00:09]} 68. Nxf3 {[%clk 0:00:05]} 1/2-1/2

[Event "December 19 Late 2023"]
[Site "https://www.chess.com"]
[Date "2023.12.19"]
[Round "4"]
[White "Boruchovsky, Avital"]
[Black "Novak, Ratko"]
[Result "1-0"]
[Board "27"]
[TimeControl "180+1"]
[WhiteFideId "2800055"]
[BlackFideId "14511827"]
[WhiteElo "2450"]
[BlackElo "2036"]
[WhiteTeam "ISR"]
[BlackTeam "CRO"]
[WhiteClock "0:00:47"]
[BlackClock "0:00:36"]

1. Nf3 {[%clk 0:03:00]}  d5 {[%clk 0:02:59]} 2. g3 {[%clk 0:03:01]}  c5 {[%clk 0:02:59]} 3. Bg2 {[%clk 0:03:01]}  Nc6 {[%clk 0:03:00]} 4. d4 {[%clk 0:03:01]}  f6 {[%clk 0:03:00]} 5. c4 {[%clk 0:02:55]}  dxc4 {[%clk 0:03:00]} 6. d5 {[%clk 0:02:55]}  Na5 {[%clk 0:03:00]} 7. O-O {[%clk 0:02:53]}  e5 {[%clk 0:03:00]} 8. dxe6 {[%clk 0:02:44]}  Qxd1 {[%clk 0:02:58]} 9. Rxd1 {[%clk 0:02:45]}  Bxe6 {[%clk 0:02:58]} 10. Nc3 {[%clk 0:02:45]}  a6 {[%clk 0:02:51]} 11. Nd5 {[%clk 0:02:27]}  Bxd5 {[%clk 0:02:40]} 12. Rxd5 {[%clk 0:02:28]}  Ne7 {[%clk 0:02:40]} 13. Rxc5 {[%clk 0:02:22]}  Nec6 {[%clk 0:02:34]} 14. Rd5 {[%clk 0:02:18]}  Rd8 {[%clk 0:02:29]} 15. Rxd8+ {[%clk 0:02:16]}  Kxd8 {[%clk 0:02:28]} 16. Be3 {[%clk 0:02:11]}  Kc7 {[%clk 0:02:27]} 17. Rc1 {[%clk 0:02:07]}  Bd6 {[%clk 0:02:05]} 18. Nd4 {[%clk 0:01:50]}  Nxd4 {[%clk 0:01:59]} 19. Bxd4 {[%clk 0:01:51]}  Be5 {[%clk 0:01:44]} 20. Bxe5+ {[%clk 0:01:51]}  fxe5 {[%clk 0:01:44]} 21. b4 {[%clk 0:01:52]}  Nc6 {[%clk 0:01:34]} 22. Rxc4 {[%clk 0:01:51]}  Rd8 {[%clk 0:01:34]} 23. Be4 {[%clk 0:01:28]}  Rd2 {[%clk 0:01:23]} 24. a4 {[%clk 0:01:27]}  Rxe2 {[%clk 0:01:20]} 25. b5 {[%clk 0:01:26]}  axb5 {[%clk 0:01:16]} 26. axb5 {[%clk 0:01:27]}  Rxe4 {[%clk 0:00:57]} 27. Rxe4 {[%clk 0:01:28]}  Na7 {[%clk 0:00:57]} 28. Rxe5 {[%clk 0:01:26]}  Kd6 {[%clk 0:00:58]} 29. Rf5 {[%clk 0:01:13]}  Ke6 {[%clk 0:00:55]} 30. Rc5 {[%clk 0:01:11]}  Kd6 {[%clk 0:00:54]} 31. Rf5 {[%clk 0:01:06]}  Ke6 {[%clk 0:00:54]} 32. g4 {[%clk 0:01:05]}  g6 {[%clk 0:00:52]} 33. b6 {[%clk 0:01:03]}  Nc8 {[%clk 0:00:49]} 34. Rc5 {[%clk 0:01:01]}  Nxb6 {[%clk 0:00:47]} 35. Rc7 {[%clk 0:00:57]}  Nd7 {[%clk 0:00:42]} 36. Rxb7 {[%clk 0:00:57]}  h5 {[%clk 0:00:41]} 37. gxh5 {[%clk 0:00:53]}  gxh5 {[%clk 0:00:41]} 38. Kg2 {[%clk 0:00:52]}  Ne5 {[%clk 0:00:40]} 39. Kg3 {[%clk 0:00:51]}  Kf5 {[%clk 0:00:39]} 40. Rb5 {[%clk 0:00:50]}  Kf6 {[%clk 0:00:39]} 41. Rxe5 {[%clk 0:00:46]}  Kxe5 {[%clk 0:00:39]} 42. Kh4 {[%clk 0:00:46]}  Kf4 {[%clk 0:00:37]} 43. Kxh5 {[%clk 0:00:46]}  Kf3 {[%clk 0:00:38]} 44. h4 {[%clk 0:00:46]}  Kxf2 {[%clk 0:00:38]} 45. Kg5 {[%clk 0:00:46]}  Kf3 {[%clk 0:00:36]} 46. h5 {[%clk 0:00:47]} 1-0

[Event "December 19 Late 2023"]
[Site "https://www.chess.com"]
[Date "2023.12.19"]
[Round "4"]
[White "Titus, Andrew"]
[Black "Fedoseev, Vladimir"]
[Result "0-1"]
[Board "30"]
[TimeControl "180+1"]
[WhiteFideId "2059770"]
[BlackFideId "24130737"]
[WhiteElo "2061"]
[BlackElo "2719"]
[WhiteTeam "USA"]
[BlackTeam "SLO"]
[WhiteClock "0:00:06"]
[BlackClock "0:01:32"]

1. e4 {[%clk 0:03:00]}  e5 {[%clk 0:02:58]} 2. Nf3 {[%clk 0:03:00]}  Nc6 {[%clk 0:02:56]} 3. Bb5 {[%clk 0:03:00]}  Nf6 {[%clk 0:02:56]} 4. O-O {[%clk 0:02:55]}  Nxe4 {[%clk 0:02:56]} 5. d4 {[%clk 0:02:52]}  Nd6 {[%clk 0:02:55]} 6. dxe5 {[%clk 0:02:51]}  Nxb5 {[%clk 0:02:55]} 7. a4 {[%clk 0:02:52]}  d6 {[%clk 0:02:48]} 8. e6 {[%clk 0:02:48]}  fxe6 {[%clk 0:02:47]} 9. axb5 {[%clk 0:02:47]}  Ne7 {[%clk 0:02:48]} 10. Nc3 {[%clk 0:02:22]}  Ng6 {[%clk 0:02:46]} 11. Ng5 {[%clk 0:02:18]}  Be7 {[%clk 0:02:46]} 12. Qh5 {[%clk 0:02:11]}  Bxg5 {[%clk 0:02:46]} 13. Bxg5 {[%clk 0:02:10]}  Qd7 {[%clk 0:02:46]} 14. f4 {[%clk 0:02:05]}  O-O {[%clk 0:02:46]} 15. g4 {[%clk 0:01:18]}  Qf7 {[%clk 0:02:33]} 16. f5 {[%clk 0:01:10]}  exf5 {[%clk 0:02:30]} 17. Be3 {[%clk 0:01:05]}  Ne5 {[%clk 0:02:24]} 18. Qxf7+ {[%clk 0:01:02]}  Rxf7 {[%clk 0:02:25]} 19. gxf5 {[%clk 0:01:02]}  Bxf5 {[%clk 0:02:25]} 20. Nd5 {[%clk 0:01:01]}  g6 {[%clk 0:02:11]} 21. Rxa7 {[%clk 0:00:57]}  Rxa7 {[%clk 0:02:09]} 22. Bxa7 {[%clk 0:00:58]}  c6 {[%clk 0:02:07]} 23. Ne3 {[%clk 0:00:54]}  Be4 {[%clk 0:01:59]} 24. Rxf7 {[%clk 0:00:48]}  Kxf7 {[%clk 0:02:00]} 25. c4 {[%clk 0:00:37]}  c5 {[%clk 0:01:57]} 26. Bb6 {[%clk 0:00:33]}  Ke6 {[%clk 0:01:58]} 27. Ba5 {[%clk 0:00:32]}  Nd3 {[%clk 0:01:54]} 28. Bc3 {[%clk 0:00:30]}  h5 {[%clk 0:01:47]} 29. h4 {[%clk 0:00:29]}  Ne5 {[%clk 0:01:46]} 30. Kf2 {[%clk 0:00:24]}  Bd3 {[%clk 0:01:37]} 31. b3 {[%clk 0:00:22]}  Be4 {[%clk 0:01:36]} 32. Kg3 {[%clk 0:00:20]}  Nd3 {[%clk 0:01:37]} 33. Nf1 {[%clk 0:00:13]}  Nc1 {[%clk 0:01:34]} 34. Bd2 {[%clk 0:00:05]}  Nxb3 {[%clk 0:01:33]} 35. Bg5 {[%clk 0:00:05]}  Na5 {[%clk 0:01:33]} 36. Ne3 {[%clk 0:00:06]}  Bd3 {[%clk 0:01:33]} 37. Kf4 {[%clk 0:00:05]}  Nxc4 {[%clk 0:01:33]} 38. b6 {[%clk 0:00:06]}  Nxb6 {[%clk 0:01:32]} 0-1

[Event "December 19 Late 2023"]
[Site "https://www.chess.com"]
[Date "2023.12.19"]
[Round "4"]
[White "Cobysters"]
[Black "Bortnyk, Mykola"]
[Result "0-1"]
[Board "31"]
[TimeControl "180+1"]
[BlackFideId "14120836"]
[WhiteElo "2587"]
[BlackElo "2592"]
[BlackTeam "UKR"]
[WhiteClock "0:01:21"]
[BlackClock "0:00:49"]

1. c4 {[%clk 0:03:00]}  e5 {[%clk 0:02:56]} 2. Nc3 {[%clk 0:02:58]}  Nf6 {[%clk 0:02:55]} 3. g3 {[%clk 0:02:59]}  c6 {[%clk 0:02:55]} 4. Nf3 {[%clk 0:02:58]}  e4 {[%clk 0:02:55]} 5. Nd4 {[%clk 0:02:59]}  d5 {[%clk 0:02:56]} 6. cxd5 {[%clk 0:02:58]}  cxd5 {[%clk 0:02:56]} 7. d3 {[%clk 0:02:59]}  Bc5 {[%clk 0:02:53]} 8. Nb3 {[%clk 0:02:59]}  Bb4 {[%clk 0:02:53]} 9. Bg2 {[%clk 0:02:57]}  d4 {[%clk 0:02:43]} 10. a3 {[%clk 0:02:57]}  Bxc3+ {[%clk 0:02:34]} 11. bxc3 {[%clk 0:02:57]}  dxc3 {[%clk 0:02:34]} 12. dxe4 {[%clk 0:02:56]}  Qxd1+ {[%clk 0:02:28]} 13. Kxd1 {[%clk 0:02:57]}  O-O {[%clk 0:02:25]} 14. Kc2 {[%clk 0:02:57]}  Be6 {[%clk 0:02:24]} 15. Rb1 {[%clk 0:02:54]}  Nc6 {[%clk 0:02:22]} 16. Be3 {[%clk 0:02:54]}  Ng4 {[%clk 0:02:22]} 17. Bc5 {[%clk 0:02:52]}  Rfd8 {[%clk 0:02:17]} 18. Rhd1 {[%clk 0:02:50]}  b6 {[%clk 0:02:16]} 19. Be3 {[%clk 0:02:46]}  Nxe3+ {[%clk 0:02:12]} 20. fxe3 {[%clk 0:02:47]}  Ne5 {[%clk 0:01:58]} 21. Nd4 {[%clk 0:02:39]}  Ng4 {[%clk 0:01:48]} 22. Rd3 {[%clk 0:02:32]}  Rac8 {[%clk 0:01:35]} 23. h3 {[%clk 0:02:22]}  Nxe3+ {[%clk 0:01:33]} 24. Rxe3 {[%clk 0:02:23]}  Rxd4 {[%clk 0:01:33]} 25. Rxc3 {[%clk 0:02:23]}  Rxc3+ {[%clk 0:01:20]} 26. Kxc3 {[%clk 0:02:24]}  Rc4+ {[%clk 0:01:21]} 27. Kb2 {[%clk 0:02:17]}  Kf8 {[%clk 0:01:21]} 28. Rc1 {[%clk 0:02:16]}  Rxc1 {[%clk 0:01:22]} 29. Kxc1 {[%clk 0:02:17]}  f6 {[%clk 0:01:20]} 30. Kd2 {[%clk 0:02:15]}  Ke7 {[%clk 0:01:21]} 31. Kc3 {[%clk 0:02:16]}  Kd6 {[%clk 0:01:21]} 32. Kd4 {[%clk 0:02:17]}  a5 {[%clk 0:01:21]} 33. e3 {[%clk 0:02:16]}  b5 {[%clk 0:01:17]} 34. Bf1 {[%clk 0:02:13]}  b4 {[%clk 0:01:18]} 35. axb4 {[%clk 0:02:14]}  axb4 {[%clk 0:01:18]} 36. h4 {[%clk 0:02:14]}  h6 {[%clk 0:01:08]} 37. Bd3 {[%clk 0:02:13]}  Ba2 {[%clk 0:01:06]} 38. Be2 {[%clk 0:01:47]}  Bb1 {[%clk 0:01:01]} 39. Bf3 {[%clk 0:01:44]}  Bc2 {[%clk 0:01:01]} 40. Kc4 {[%clk 0:01:44]}  b3 {[%clk 0:01:02]} 41. Kc3 {[%clk 0:01:45]}  Ke5 {[%clk 0:01:03]} 42. g4 {[%clk 0:01:37]}  Bxe4 {[%clk 0:01:01]} 43. Bd1 {[%clk 0:01:37]}  Bc2 {[%clk 0:00:57]} 44. Bf3 {[%clk 0:01:38]}  Be4 {[%clk 0:00:56]} 45. Bd1 {[%clk 0:01:38]}  Bd5 {[%clk 0:00:57]} 46. Be2 {[%clk 0:01:16]}  Ke4 {[%clk 0:00:54]} 47. Bd3+ {[%clk 0:01:16]}  Kxe3 {[%clk 0:00:55]} 48. Bg6 {[%clk 0:01:17]}  Kf4 {[%clk 0:00:53]} 49. Bf5 {[%clk 0:01:17]}  Kg3 {[%clk 0:00:50]} 50. h5 {[%clk 0:01:17]}  Kf4 {[%clk 0:00:50]} 51. Kb2 {[%clk 0:01:17]}  Kg5 {[%clk 0:00:51]} 52. Kc3 {[%clk 0:01:17]}  Bf3 {[%clk 0:00:51]} 53. Kxb3 {[%clk 0:01:17]}  Bxg4 {[%clk 0:00:52]} 54. Bb1 {[%clk 0:01:17]}  Bxh5 {[%clk 0:00:52]} 55. Kc3 {[%clk 0:01:17]}  Bg6 {[%clk 0:00:52]} 56. Ba2 {[%clk 0:01:18]}  h5 {[%clk 0:00:53]} 57. Kd2 {[%clk 0:01:18]}  Kf4 {[%clk 0:00:53]} 58. Ke2 {[%clk 0:01:19]}  Be4 {[%clk 0:00:54]} 59. Kf2 {[%clk 0:01:19]}  g5 {[%clk 0:00:54]} 60. Bf7 {[%clk 0:01:19]}  h4 {[%clk 0:00:55]} 61. Bh5 {[%clk 0:01:19]}  f5 {[%clk 0:00:55]} 62. Be2 {[%clk 0:01:19]}  g4 {[%clk 0:00:56]} 63. Kg1 {[%clk 0:01:19]}  Kg3 {[%clk 0:00:56]} 64. Bf1 {[%clk 0:01:20]}  h3 {[%clk 0:00:56]} 65. Bg2 {[%clk 0:01:19]}  h2+ {[%clk 0:00:51]} 66. Kf1 {[%clk 0:01:20]}  Bxg2+ {[%clk 0:00:51]} 67. Ke2 {[%clk 0:01:20]}  h1=Q {[%clk 0:00:49]} 68. Ke3 {[%clk 0:01:21]} 0-1